Workbook

Sheet MENU PRINCIPAL

Sheet PRODUCTOS
A3: INVENTARIO DE PRODUCTOS
A5: CODIGO | B5: PRODUCTO | C5: PROVEDOR | D5: CANT. EX | E5: ENTRADAS | F5: SALIDAS | G5: PRECIO DE COMPRA | H5: PRECIO DE VENTA | I5: GANANCIA | J5: TOTAL COMPRA | K5: TOTAL VENTA
A6: 18 | B6: TUBO SANITARIO 2" | C6: SELTA | D6: =PRODUCTO[[#This Row],[ENTRADAS]]-PRODUCTO[[#This Row],[SALIDAS]] -> 60 | E6: =SUMIF(ENTRADAS[[#All],[CODIGO ]],A5:A6,ENTRADAS[[#All],[CANTIDAD]]) -> 60 | F6: =SUMIF(SALIDAS[[#All],[CODICO]],A5:A6,SALIDAS[[#All],[CANTIDAD]]) -> 0 | G6: 11000 | H6: 16000 | I6: =PRODUCTO[[#This Row],[PRECIO DE VENTA]]-PRODUCTO[[#This Row],[PRECIO DE COMPRA]] -> 5000 | J6: =PRODUCTO[[#This Row],[PRECIO DE COMPRA]]*PRODUCTO[[#This Row],[CANT. EX]] -> 660000 | K6: =PRODUCTO[[#This Row],[CANT. EX]]*PRODUCTO[[#This Row],[PRECIO DE VENTA]] -> 960000
A7: 17 | B7: TUBO SANITARIO 3" | C7: SELTA | D7: =PRODUCTO[[#This Row],[ENTRADAS]]-PRODUCTO[[#This Row],[SALIDAS]] -> 60 | E7: =SUMIF(ENTRADAS[[#All],[CODIGO ]],A5:A7,ENTRADAS[[#All],[CANTIDAD]]) -> 60 | F7: =SUMIF(SALIDAS[[#All],[CODICO]],A5:A7,SALIDAS[[#All],[CANTIDAD]]) -> 0 | G7: 18000 | H7: 23000 | I7: =PRODUCTO[[#This Row],[PRECIO DE VENTA]]-PRODUCTO[[#This Row],[PRECIO DE COMPRA]] -> 5000 | J7: =PRODUCTO[[#This Row],[PRECIO DE COMPRA]]*PRODUCTO[[#This Row],[CANT. EX]] -> 1080000 | K7: =PRODUCTO[[#This Row],[CANT. EX]]*PRODUCTO[[#This Row],[PRECIO DE VENTA]] -> 1380000
A8: 16 | B8: TUBO SANITARIO 4" | C8: SELTA | D8: =PRODUCTO[[#This Row],[ENTRADAS]]-PRODUCTO[[#This Row],[SALIDAS]] -> 80 | E8: =SUMIF(ENTRADAS[[#All],[CODIGO ]],A5:A8,ENTRADAS[[#All],[CANTIDAD]]) -> 80 | F8: =SUMIF(SALIDAS[[#All],[CODICO]],A5:A8,SALIDAS[[#All],[CANTIDAD]]) -> 0 | G8: 28000 | H8: 32000 | I8: =PRODUCTO[[#This Row],[PRECIO DE VENTA]]-PRODUCTO[[#This Row],[PRECIO DE COMPRA]] -> 4000 | J8: =PRODUCTO[[#This Row],[PRECIO DE COMPRA]]*PRODUCTO[[#This Row],[CANT. EX]] -> 2240000 | K8: =PRODUCTO[[#This Row],[CANT. EX]]*PRODUCTO[[#This Row],[PRECIO DE VENTA]] -> 2560000
A9: 15 | B9: BOLSA DE CAL | C9: FERRE TODO | D9: =PRODUCTO[[#This Row],[ENTRADAS]]-PRODUCTO[[#This Row],[SALIDAS]] -> 50 | E9: =SUMIF(ENTRADAS[[#All],[CODIGO ]],A5:A9,ENTRADAS[[#All],[CANTIDAD]]) -> 50 | F9: =SUMIF(SALIDAS[[#All],[CODICO]],A5:A9,SALIDAS[[#All],[CANTIDAD]]) -> 0 | G9: 5000 | H9: 8000 | I9: =PRODUCTO[[#This Row],[PRECIO DE VENTA]]-PRODUCTO[[#This Row],[PRECIO DE COMPRA]] -> 3000 | J9: =PRODUCTO[[#This Row],[PRECIO DE COMPRA]]*PRODUCTO[[#This Row],[CANT. EX]] -> 250000 | K9: =PRODUCTO[[#This Row],[CANT. EX]]*PRODUCTO[[#This Row],[PRECIO DE VENTA]] -> 400000
A10: 14 | B10: PEGA MAC | C10: FERRE TODO | D10: =PRODUCTO[[#This Row],[ENTRADAS]]-PRODUCTO[[#This Row],[SALIDAS]] -> 50 | E10: =SUMIF(ENTRADAS[[#All],[CODIGO ]],A5:A10,ENTRADAS[[#All],[CANTIDAD]]) -> 50 | F10: =SUMIF(SALIDAS[[#All],[CODICO]],A5:A10,SALIDAS[[#All],[CANTIDAD]]) -> 0 | G10: 8000 | H10: 11000 | I10: =PRODUCTO[[#This Row],[PRECIO DE VENTA]]-PRODUCTO[[#This Row],[PRECIO DE COMPRA]] -> 3000 | J10: =PRODUCTO[[#This Row],[PRECIO DE COMPRA]]*PRODUCTO[[#This Row],[CANT. EX]] -> 400000 | K10: =PRODUCTO[[#This Row],[CANT. EX]]*PRODUCTO[[#This Row],[PRECIO DE VENTA]] -> 550000
A11: 13 | B11: FIJA LISTO | C11: MATERIALES COLOMBIA | D11: =PRODUCTO[[#This Row],[ENTRADAS]]-PRODUCTO[[#This Row],[SALIDAS]] -> 50 | E11: =SUMIF(ENTRADAS[[#All],[CODIGO ]],A5:A11,ENTRADAS[[#All],[CANTIDAD]]) -> 50 | F11: =SUMIF(SALIDAS[[#All],[CODICO]],A5:A11,SALIDAS[[#All],[CANTIDAD]]) -> 0 | G11: 9000 | H11: 12000 | I11: =PRODUCTO[[#This Row],[PRECIO DE VENTA]]-PRODUCTO[[#This Row],[PRECIO DE COMPRA]] -> 3000 | J11: =PRODUCTO[[#This Row],[PRECIO DE COMPRA]]*PRODUCTO[[#This Row],[CANT. EX]] -> 450000 | K11: =PRODUCTO[[#This Row],[CANT. EX]]*PRODUCTO[[#This Row],[PRECIO DE VENTA]] -> 600000
A12: 12 | B12: LADRILLO | C12: NO ESPECIFICADO | D12: =PRODUCTO[[#This Row],[ENTRADAS]]-PRODUCTO[[#This Row],[SALIDAS]] -> 5000 | E12: =SUMIF(ENTRADAS[[#All],[CODIGO ]],A5:A12,ENTRADAS[[#All],[CANTIDAD]]) -> 5000 | F12: =SUMIF(SALIDAS[[#All],[CODICO]],A5:A12,SALIDAS[[#All],[CANTIDAD]]) -> 0 | G12: 350 | H12: 500 | I12: =PRODUCTO[[#This Row],[PRECIO DE VENTA]]-PRODUCTO[[#This Row],[PRECIO DE COMPRA]] -> 150 | J12: =PRODUCTO[[#This Row],[PRECIO DE COMPRA]]*PRODUCTO[[#This Row],[CANT. EX]] -> 1750000 | K12: =PRODUCTO[[#This Row],[CANT. EX]]*PRODUCTO[[#This Row],[PRECIO DE VENTA]] -> 2500000
A13: 11 | B13: BLOQUE DE HUECO | C13: NO ESPECIFICADO | D13: =PRODUCTO[[#This Row],[ENTRADAS]]-PRODUCTO[[#This Row],[SALIDAS]] -> 1000 | E13: =SUMIF(ENTRADAS[[#All],[CODIGO ]],A5:A13,ENTRADAS[[#All],[CANTIDAD]]) -> 1000 | F13: =SUMIF(SALIDAS[[#All],[CODICO]],A5:A13,SALIDAS[[#All],[CANTIDAD]]) -> 0 | G13: 400 | H13: 800 | I13: =PRODUCTO[[#This Row],[PRECIO DE VENTA]]-PRODUCTO[[#This Row],[PRECIO DE COMPRA]] -> 400 | J13: =PRODUCTO[[#This Row],[PRECIO DE COMPRA]]*PRODUCTO[[#This Row],[CANT. EX]] -> 400000 | K13: =PRODUCTO[[#This Row],[CANT. EX]]*PRODUCTO[[#This Row],[PRECIO DE VENTA]] -> 800000
A14: 10 | B14: LATA DE GRAVILLA | C14: NO ESPECIFICADO | D14: =PRODUCTO[[#This Row],[ENTRADAS]]-PRODUCTO[[#This Row],[SALIDAS]] -> 300 | E14: =SUMIF(ENTRADAS[[#All],[CODIGO ]],A5:A14,ENTRADAS[[#All],[CANTIDAD]]) -> 300 | F14: =SUMIF(SALIDAS[[#All],[CODICO]],A5:A14,SALIDAS[[#All],[CANTIDAD]]) -> 0 | G14: 2200 | H14: 3000 | I14: =PRODUCTO[[#This Row],[PRECIO DE VENTA]]-PRODUCTO[[#This Row],[PRECIO DE COMPRA]] -> 800 | J14: =PRODUCTO[[#This Row],[PRECIO DE COMPRA]]*PRODUCTO[[#This Row],[CANT. EX]] -> 660000 | K14: =PRODUCTO[[#This Row],[CANT. EX]]*PRODUCTO[[#This Row],[PRECIO DE VENTA]] -> 900000
A15: 9 | B15: LATA ARENA FINA | C15: NO ESPECIFICADO | D15: =PRODUCTO[[#This Row],[ENTRADAS]]-PRODUCTO[[#This Row],[SALIDAS]] -> 300 | E15: =SUMIF(ENTRADAS[[#All],[CODIGO ]],A5:A15,ENTRADAS[[#All],[CANTIDAD]]) -> 300 | F15: =SUMIF(SALIDAS[[#All],[CODICO]],A5:A15,SALIDAS[[#All],[CANTIDAD]]) -> 0 | G15: 500 | H15: 1100 | I15: =PRODUCTO[[#This Row],[PRECIO DE VENTA]]-PRODUCTO[[#This Row],[PRECIO DE COMPRA]] -> 600 | J15: =PRODUCTO[[#This Row],[PRECIO DE COMPRA]]*PRODUCTO[[#This Row],[CANT. EX]] -> 150000 | K15: =PRODUCTO[[#This Row],[CANT. EX]]*PRODUCTO[[#This Row],[PRECIO DE VENTA]] -> 330000
A16: 8 | B16: LATA ARENA GRUESA | C16: NO ESPECIFICADO | D16: =PRODUCTO[[#This Row],[ENTRADAS]]-PRODUCTO[[#This Row],[SALIDAS]] -> 300 | E16: =SUMIF(ENTRADAS[[#All],[CODIGO ]],A5:A16,ENTRADAS[[#All],[CANTIDAD]]) -> 300 | F16: =SUMIF(SALIDAS[[#All],[CODICO]],A5:A16,SALIDAS[[#All],[CANTIDAD]]) -> 0 | G16: 400 | H16: 900 | I16: =PRODUCTO[[#This Row],[PRECIO DE VENTA]]-PRODUCTO[[#This Row],[PRECIO DE COMPRA]] -> 500 | J16: =PRODUCTO[[#This Row],[PRECIO DE COMPRA]]*PRODUCTO[[#This Row],[CANT. EX]] -> 120000 | K16: =PRODUCTO[[#This Row],[CANT. EX]]*PRODUCTO[[#This Row],[PRECIO DE VENTA]] -> 270000
A17: 7 | B17: BULTO ARGOS | C17: CAZA EL ALBAÑIL | D17: =PRODUCTO[[#This Row],[ENTRADAS]]-PRODUCTO[[#This Row],[SALIDAS]] -> 100 | E17: =SUMIF(ENTRADAS[[#All],[CODIGO ]],A5:A17,ENTRADAS[[#All],[CANTIDAD]]) -> 100 | F17: =SUMIF(SALIDAS[[#All],[CODICO]],A5:A17,SALIDAS[[#All],[CANTIDAD]]) -> 0 | G17: 23000 | H17: 25500 | I17: =PRODUCTO[[#This Row],[PRECIO DE VENTA]]-PRODUCTO[[#This Row],[PRECIO DE COMPRA]] -> 2500 | J17: =PRODUCTO[[#This Row],[PRECIO DE COMPRA]]*PRODUCTO[[#This Row],[CANT. EX]] -> 2300000 | K17: =PRODUCTO[[#This Row],[CANT. EX]]*PRODUCTO[[#This Row],[PRECIO DE VENTA]] -> 2550000
A18: 6 | B18: BULTO ULTRACEM | C18: FERRE TODO | D18: =PRODUCTO[[#This Row],[ENTRADAS]]-PRODUCTO[[#This Row],[SALIDAS]] -> 300 | E18: =SUMIF(ENTRADAS[[#All],[CODIGO ]],A5:A18,ENTRADAS[[#All],[CANTIDAD]]) -> 300 | F18: =SUMIF(SALIDAS[[#All],[CODICO]],A5:A18,SALIDAS[[#All],[CANTIDAD]]) -> 0 | G18: 24000 | H18: 26500 | I18: =PRODUCTO[[#This Row],[PRECIO DE VENTA]]-PRODUCTO[[#This Row],[PRECIO DE COMPRA]] -> 2500 | J18: =PRODUCTO[[#This Row],[PRECIO DE COMPRA]]*PRODUCTO[[#This Row],[CANT. EX]] -> 7200000 | K18: =PRODUCTO[[#This Row],[CANT. EX]]*PRODUCTO[[#This Row],[PRECIO DE VENTA]] -> 7950000
A19: 5 | B19: ZING CORTO | C19: MATERIALES COLOMBIA | D19: =PRODUCTO[[#This Row],[ENTRADAS]]-PRODUCTO[[#This Row],[SALIDAS]] -> 100 | E19: =SUMIF(ENTRADAS[[#All],[CODIGO ]],A5:A19,ENTRADAS[[#All],[CANTIDAD]]) -> 100 | F19: =SUMIF(SALIDAS[[#All],[CODICO]],A5:A19,SALIDAS[[#All],[CANTIDAD]]) -> 0 | G19: 12000 | H19: 15000 | I19: =PRODUCTO[[#This Row],[PRECIO DE VENTA]]-PRODUCTO[[#This Row],[PRECIO DE COMPRA]] -> 3000 | J19: =PRODUCTO[[#This Row],[PRECIO DE COMPRA]]*PRODUCTO[[#This Row],[CANT. EX]] -> 1200000 | K19: =PRODUCTO[[#This Row],[CANT. EX]]*PRODUCTO[[#This Row],[PRECIO DE VENTA]] -> 1500000
A20: 4 | B20: ZING LARO | C20: MATERIALES COLOMBIA | D20: =PRODUCTO[[#This Row],[ENTRADAS]]-PRODUCTO[[#This Row],[SALIDAS]] -> 100 | E20: =SUMIF(ENTRADAS[[#All],[CODIGO ]],A5:A20,ENTRADAS[[#All],[CANTIDAD]]) -> 100 | F20: =SUMIF(SALIDAS[[#All],[CODICO]],A5:A20,SALIDAS[[#All],[CANTIDAD]]) -> 0 | G20: 21000 | H20: 24000 | I20: =PRODUCTO[[#This Row],[PRECIO DE VENTA]]-PRODUCTO[[#This Row],[PRECIO DE COMPRA]] -> 3000 | J20: =PRODUCTO[[#This Row],[PRECIO DE COMPRA]]*PRODUCTO[[#This Row],[CANT. EX]] -> 2100000 | K20: =PRODUCTO[[#This Row],[CANT. EX]]*PRODUCTO[[#This Row],[PRECIO DE VENTA]] -> 2400000
A21: 3 | B21: ETERNIT # 4 | C21: FERE TODO | D21: =PRODUCTO[[#This Row],[ENTRADAS]]-PRODUCTO[[#This Row],[SALIDAS]] -> 100 | E21: =SUMIF(ENTRADAS[[#All],[CODIGO ]],A5:A21,ENTRADAS[[#All],[CANTIDAD]]) -> 100 | F21: =SUMIF(SALIDAS[[#All],[CODICO]],A5:A21,SALIDAS[[#All],[CANTIDAD]]) -> 0 | G21: 12000 | H21: 17000 | I21: =PRODUCTO[[#This Row],[PRECIO DE VENTA]]-PRODUCTO[[#This Row],[PRECIO DE COMPRA]] -> 5000 | J21: =PRODUCTO[[#This Row],[PRECIO DE COMPRA]]*PRODUCTO[[#This Row],[CANT. EX]] -> 1200000 | K21: =PRODUCTO[[#This Row],[CANT. EX]]*PRODUCTO[[#This Row],[PRECIO DE VENTA]] -> 1700000
A22: 2 | B22: ETERNIT #6 | C22: FERRE TODO | D22: =PRODUCTO[[#This Row],[ENTRADAS]]-PRODUCTO[[#This Row],[SALIDAS]] -> 300 | E22: =SUMIF(ENTRADAS[[#All],[CODIGO ]],A5:A22,ENTRADAS[[#All],[CANTIDAD]]) -> 300 | F22: =SUMIF(SALIDAS[[#All],[CODICO]],A5:A22,SALIDAS[[#All],[CANTIDAD]]) -> 0 | G22: 18000 | H22: 23000 | I22: =PRODUCTO[[#This Row],[PRECIO DE VENTA]]-PRODUCTO[[#This Row],[PRECIO DE COMPRA]] -> 5000 | J22: =PRODUCTO[[#This Row],[PRECIO DE COMPRA]]*PRODUCTO[[#This Row],[CANT. EX]] -> 5400000 | K22: =PRODUCTO[[#This Row],[CANT. EX]]*PRODUCTO[[#This Row],[PRECIO DE VENTA]] -> 6900000
A23: 1 | B23: ETERNIT # 8 | C23: FERRE TODO | D23: =PRODUCTO[[#This Row],[ENTRADAS]]-PRODUCTO[[#This Row],[SALIDAS]] -> 300 | E23: =SUMIF(ENTRADAS[[#All],[CODIGO ]],A5:A23,ENTRADAS[[#All],[CANTIDAD]]) -> 300 | F23: =SUMIF(SALIDAS[[#All],[CODICO]],A5:A23,SALIDAS[[#All],[CANTIDAD]]) -> 0 | G23: 30000 | H23: 35000 | I23: =PRODUCTO[[#This Row],[PRECIO DE VENTA]]-PRODUCTO[[#This Row],[PRECIO DE COMPRA]] -> 5000 | J23: =PRODUCTO[[#This Row],[PRECIO DE COMPRA]]*PRODUCTO[[#This Row],[CANT. EX]] -> 9000000 | K23: =PRODUCTO[[#This Row],[CANT. EX]]*PRODUCTO[[#This Row],[PRECIO DE VENTA]] -> 10500000
A24: Total | J24: =SUBTOTAL(109,PRODUCTO[TOTAL COMPRA]) -> 36560000 | K24: =SUBTOTAL(109,PRODUCTO[TOTAL VENTA]) -> 44750000

Sheet ENTRADAS
A3: ENTRADA DE PRODUCTOS
A5: FECHA | B5: CODIGO | C5: PRODUCTO | D5: PRECIO DE COMPRA | E5: CANTIDAD | F5: TOTAL COMPRA ENTRADAS
B6: 2 | C6: =IFERROR(VLOOKUP(ENTRADAS[[CODIGO ]],PRODUCTO[],2,FALSE), "") -> ETERNIT #6 | D6: =IFERROR(VLOOKUP(ENTRADAS[[#This Row],[CODIGO ]],PRODUCTO[],7,FALSE), "") -> 18000 | F6: =IFERROR(ENTRADAS[[#This Row],[PRECIO DE COMPRA]]*ENTRADAS[[#This Row],[CANTIDAD]], "") -> 0
B7: 1 | C7: =IFERROR(VLOOKUP(ENTRADAS[[CODIGO ]],PRODUCTO[],2,FALSE), "") -> ETERNIT # 8 | D7: =IFERROR(VLOOKUP(ENTRADAS[[#This Row],[CODIGO ]],PRODUCTO[],7,FALSE), "") -> 30000 | F7: =IFERROR(ENTRADAS[[#This Row],[PRECIO DE COMPRA]]*ENTRADAS[[#This Row],[CANTIDAD]], "") -> 0
B8: 18 | C8: =IFERROR(VLOOKUP(ENTRADAS[[CODIGO ]],PRODUCTO[],2,FALSE), "") -> TUBO SANITARIO 2" | D8: =IFERROR(VLOOKUP(ENTRADAS[[#This Row],[CODIGO ]],PRODUCTO[],7,FALSE), "") -> 11000 | E8: 60 | F8: =IFERROR(ENTRADAS[[#This Row],[PRECIO DE COMPRA]]*ENTRADAS[[#This Row],[CANTIDAD]], "") -> 660000
B9: 17 | C9: =IFERROR(VLOOKUP(ENTRADAS[[CODIGO ]],PRODUCTO[],2,FALSE), "") -> TUBO SANITARIO 3" | D9: =IFERROR(VLOOKUP(ENTRADAS[[#This Row],[CODIGO ]],PRODUCTO[],7,FALSE), "") -> 18000 | E9: 60 | F9: =IFERROR(ENTRADAS[[#This Row],[PRECIO DE COMPRA]]*ENTRADAS[[#This Row],[CANTIDAD]], "") -> 1080000
B10: 16 | C10: =IFERROR(VLOOKUP(ENTRADAS[[CODIGO ]],PRODUCTO[],2,FALSE), "") -> TUBO SANITARIO 4" | D10: =IFERROR(VLOOKUP(ENTRADAS[[#This Row],[CODIGO ]],PRODUCTO[],7,FALSE), "") -> 28000 | E10: 80 | F10: =IFERROR(ENTRADAS[[#This Row],[PRECIO DE COMPRA]]*ENTRADAS[[#This Row],[CANTIDAD]], "") -> 2240000
B11: 15 | C11: =IFERROR(VLOOKUP(ENTRADAS[[CODIGO ]],PRODUCTO[],2,FALSE), "") -> BOLSA DE CAL | D11: =IFERROR(VLOOKUP(ENTRADAS[[#This Row],[CODIGO ]],PRODUCTO[],7,FALSE), "") -> 5000 | E11: 50 | F11: =IFERROR(ENTRADAS[[#This Row],[PRECIO DE COMPRA]]*ENTRADAS[[#This Row],[CANTIDAD]], "") -> 250000
B12: 14 | C12: =IFERROR(VLOOKUP(ENTRADAS[[CODIGO ]],PRODUCTO[],2,FALSE), "") -> PEGA MAC | D12: =IFERROR(VLOOKUP(ENTRADAS[[#This Row],[CODIGO ]],PRODUCTO[],7,FALSE), "") -> 8000 | E12: 50 | F12: =IFERROR(ENTRADAS[[#This Row],[PRECIO DE COMPRA]]*ENTRADAS[[#This Row],[CANTIDAD]], "") -> 400000
B13: 13 | C13: =IFERROR(VLOOKUP(ENTRADAS[[CODIGO ]],PRODUCTO[],2,FALSE), "") -> FIJA LISTO | D13: =IFERROR(VLOOKUP(ENTRADAS[[#This Row],[CODIGO ]],PRODUCTO[],7,FALSE), "") -> 9000 | E13: 50 | F13: =IFERROR(ENTRADAS[[#This Row],[PRECIO DE COMPRA]]*ENTRADAS[[#This Row],[CANTIDAD]], "") -> 450000
B14: 12 | C14: =IFERROR(VLOOKUP(ENTRADAS[[CODIGO ]],PRODUCTO[],2,FALSE), "") -> LADRILLO | D14: =IFERROR(VLOOKUP(ENTRADAS[[#This Row],[CODIGO ]],PRODUCTO[],7,FALSE), "") -> 350 | E14: 5000 | F14: =IFERROR(ENTRADAS[[#This Row],[PRECIO DE COMPRA]]*ENTRADAS[[#This Row],[CANTIDAD]], "") -> 1750000
B15: 11 | C15: =IFERROR(VLOOKUP(ENTRADAS[[CODIGO ]],PRODUCTO[],2,FALSE), "") -> BLOQUE DE HUECO | D15: =IFERROR(VLOOKUP(ENTRADAS[[#This Row],[CODIGO ]],PRODUCTO[],7,FALSE), "") -> 400 | E15: 1000 | F15: =IFERROR(ENTRADAS[[#This Row],[PRECIO DE COMPRA]]*ENTRADAS[[#This Row],[CANTIDAD]], "") -> 400000
B16: 10 | C16: =IFERROR(VLOOKUP(ENTRADAS[[CODIGO ]],PRODUCTO[],2,FALSE), "") -> LATA DE GRAVILLA | D16: =IFERROR(VLOOKUP(ENTRADAS[[#This Row],[CODIGO ]],PRODUCTO[],7,FALSE), "") -> 2200 | E16: 300 | F16: =IFERROR(ENTRADAS[[#This Row],[PRECIO DE COMPRA]]*ENTRADAS[[#This Row],[CANTIDAD]], "") -> 660000
B17: 9 | C17: =IFERROR(VLOOKUP(ENTRADAS[[CODIGO ]],PRODUCTO[],2,FALSE), "") -> LATA ARENA FINA | D17: =IFERROR(VLOOKUP(ENTRADAS[[#This Row],[CODIGO ]],PRODUCTO[],7,FALSE), "") -> 500 | E17: 300 | F17: =IFERROR(ENTRADAS[[#This Row],[PRECIO DE COMPRA]]*ENTRADAS[[#This Row],[CANTIDAD]], "") -> 150000
B18: 8 | C18: =IFERROR(VLOOKUP(ENTRADAS[[CODIGO ]],PRODUCTO[],2,FALSE), "") -> LATA ARENA GRUESA | D18: =IFERROR(VLOOKUP(ENTRADAS[[#This Row],[CODIGO ]],PRODUCTO[],7,FALSE), "") -> 400 | E18: 300 | F18: =IFERROR(ENTRADAS[[#This Row],[PRECIO DE COMPRA]]*ENTRADAS[[#This Row],[CANTIDAD]], "") -> 120000
B19: 7 | C19: =IFERROR(VLOOKUP(ENTRADAS[[CODIGO ]],PRODUCTO[],2,FALSE), "") -> BULTO ARGOS | D19: =IFERROR(VLOOKUP(ENTRADAS[[#This Row],[CODIGO ]],PRODUCTO[],7,FALSE), "") -> 23000 | E19: 100 | F19: =IFERROR(ENTRADAS[[#This Row],[PRECIO DE COMPRA]]*ENTRADAS[[#This Row],[CANTIDAD]], "") -> 2300000
B20: 6 | C20: =IFERROR(VLOOKUP(ENTRADAS[[CODIGO ]],PRODUCTO[],2,FALSE), "") -> BULTO ULTRACEM | D20: =IFERROR(VLOOKUP(ENTRADAS[[#This Row],[CODIGO ]],PRODUCTO[],7,FALSE), "") -> 24000 | E20: 300 | F20: =IFERROR(ENTRADAS[[#This Row],[PRECIO DE COMPRA]]*ENTRADAS[[#This Row],[CANTIDAD]], "") -> 7200000
B21: 5 | C21: =IFERROR(VLOOKUP(ENTRADAS[[CODIGO ]],PRODUCTO[],2,FALSE), "") -> ZING CORTO | D21: =IFERROR(VLOOKUP(ENTRADAS[[#This Row],[CODIGO ]],PRODUCTO[],7,FALSE), "") -> 12000 | E21: 100 | F21: =IFERROR(ENTRADAS[[#This Row],[PRECIO DE COMPRA]]*ENTRADAS[[#This Row],[CANTIDAD]], "") -> 1200000
B22: 4 | C22: =IFERROR(VLOOKUP(ENTRADAS[[CODIGO ]],PRODUCTO[],2,FALSE), "") -> ZING LARO | D22: =IFERROR(VLOOKUP(ENTRADAS[[#This Row],[CODIGO ]],PRODUCTO[],7,FALSE), "") -> 21000 | E22: 100 | F22: =IFERROR(ENTRADAS[[#This Row],[PRECIO DE COMPRA]]*ENTRADAS[[#This Row],[CANTIDAD]], "") -> 2100000
B23: 3 | C23: =IFERROR(VLOOKUP(ENTRADAS[[CODIGO ]],PRODUCTO[],2,FALSE), "") -> ETERNIT # 4 | D23: =IFERROR(VLOOKUP(ENTRADAS[[#This Row],[CODIGO ]],PRODUCTO[],7,FALSE), "") -> 12000 | E23: 100 | F23: =IFERROR(ENTRADAS[[#This Row],[PRECIO DE COMPRA]]*ENTRADAS[[#This Row],[CANTIDAD]], "") -> 1200000
B24: 2 | C24: =IFERROR(VLOOKUP(ENTRADAS[[CODIGO ]],PRODUCTO[],2,FALSE), "") -> ETERNIT #6 | D24: =IFERROR(VLOOKUP(ENTRADAS[[#This Row],[CODIGO ]],PRODUCTO[],7,FALSE), "") -> 18000 | E24: 300 | F24: =IFERROR(ENTRADAS[[#This Row],[PRECIO DE COMPRA]]*ENTRADAS[[#This Row],[CANTIDAD]], "") -> 5400000
B25: 1 | C25: =IFERROR(VLOOKUP(ENTRADAS[[CODIGO ]],PRODUCTO[],2,FALSE), "") -> ETERNIT # 8 | D25: =IFERROR(VLOOKUP(ENTRADAS[[#This Row],[CODIGO ]],PRODUCTO[],7,FALSE), "") -> 30000 | E25: 300 | F25: =IFERROR(ENTRADAS[[#This Row],[PRECIO DE COMPRA]]*ENTRADAS[[#This Row],[CANTIDAD]], "") -> 9000000
A26: Total | D26: =SUBTOTAL(109,ENTRADAS[PRECIO DE COMPRA]) -> 270850 | E26: =SUBTOTAL(109,ENTRADAS[CANTIDAD]) -> 8550 | F26: =SUBTOTAL(109,ENTRADAS[TOTAL COMPRA ENTRADAS]) -> 36560000

Sheet SALIDAS
A2: SALIDA DE PRODUCTOS
A4: FECHA | B4: CODICO | C4: PRODUCTO | D4: CANTIDAD | E4: PRECIO DE COMPRA | F4: PRECIO DE VENTA | G4: TOTAL VENTA | H4: GANANCIA | I4: FORMA DE PAGO
A6: Total | E6: =SUBTOTAL(109,SALIDAS[PRECIO DE COMPRA]) -> 0 | F6: =SUBTOTAL(109,SALIDAS[PRECIO DE VENTA]) -> 0 | G6: =SUBTOTAL(109,SALIDAS[[TOTAL VENTA ]]) -> 0 | H6: =SUBTOTAL(109,SALIDAS[GANANCIA]) -> 0 | I6: =SUMIF(SALIDAS[FORMA DE PAGO],"CREDITO",SALIDAS[[TOTAL VENTA ]]) -> 0

Sheet FACTURA
A6: NO FACTURA | B6: 1088
A7: FECHA | B7: =TODAY() -> 2020-09-22
A8: DATOS DEL CLIENTE
A9: CEDULA / NIT | E9: DR. | F9: =IFERROR(VLOOKUP(C9,#REF!,3,FALSE)," ") -> 
A10: NOMBRE / APELLIDO | C10: =IFERROR(VLOOKUP(C9,#REF!,2,FALSE)," ") ->  | E10: CEL. | F10: =IFERROR(VLOOKUP(C9,#REF!,4,FALSE)," ") -> 
A11: DETALLES DE LA COMPRA
A12: FORMA DE PAGO | G12: CREDITO
A13: CODICO | B13: PRODUCTO | E13: CANT. | F13: VR. UNIT. | G13: VR. TOTAL | I13: FORMULARIO
A14: 12 | B14: =IFERROR(VLOOKUP(A14,PRODUCTO[],2,FALSE), " ") -> LADRILLO | F14: =IFERROR(VLOOKUP(A14,PRODUCTO[],8,FALSE),0) -> 500 | G14: =E14*F14 -> 0
B15: =IFERROR(VLOOKUP(A15,PRODUCTO[],2,FALSE), " ") ->  | F15: =IFERROR(VLOOKUP(A15,PRODUCTO[],8,FALSE),0) -> 0 | G15: 0
B16: =IFERROR(VLOOKUP(A16,PRODUCTO[],2,FALSE), " ") ->  | F16: =IFERROR(VLOOKUP(A16,PRODUCTO[],8,FALSE),0) -> 0 | G16: 0
B17: =IFERROR(VLOOKUP(A17,PRODUCTO[],2,FALSE), " ") ->  | F17: =IFERROR(VLOOKUP(A17,PRODUCTO[],8,FALSE),0) -> 0 | G17: 0
B18: =IFERROR(VLOOKUP(A18,PRODUCTO[],2,FALSE), " ") ->  | F18: =IFERROR(VLOOKUP(A18,PRODUCTO[],8,FALSE),0) -> 0 | G18: 0
B19: =IFERROR(VLOOKUP(A19,PRODUCTO[],2,FALSE), " ") ->  | F19: =IFERROR(VLOOKUP(A19,PRODUCTO[],8,FALSE),0) -> 0 | G19: 0
B20: =IFERROR(VLOOKUP(A20,PRODUCTO[],2,FALSE), " ") ->  | F20: =IFERROR(VLOOKUP(A20,PRODUCTO[],8,FALSE),0) -> 0 | G20: 0
B21: =IFERROR(VLOOKUP(A21,PRODUCTO[],2,FALSE), " ") ->  | F21: =IFERROR(VLOOKUP(A21,PRODUCTO[],8,FALSE),0) -> 0 | G21: 0
B22: =IFERROR(VLOOKUP(A22,PRODUCTO[],2,FALSE), " ") ->  | F22: =IFERROR(VLOOKUP(A22,PRODUCTO[],8,FALSE),0) -> 0 | G22: 0
B23: =IFERROR(VLOOKUP(A23,PRODUCTO[],2,FALSE), " ") ->  | F23: =IFERROR(VLOOKUP(A23,PRODUCTO[],8,FALSE),0) -> 0 | G23: 0
B24: =IFERROR(VLOOKUP(A24,PRODUCTO[],2,FALSE), " ") ->  | F24: =IFERROR(VLOOKUP(A24,PRODUCTO[],8,FALSE),0) -> 0 | G24: 0
B25: =IFERROR(VLOOKUP(A25,PRODUCTO[],2,FALSE), " ") ->  | F25: =IFERROR(VLOOKUP(A25,PRODUCTO[],8,FALSE),0) -> 0 | G25: 0
B26: =IFERROR(VLOOKUP(A26,PRODUCTO[],2,FALSE), " ") ->  | F26: =IFERROR(VLOOKUP(A26,PRODUCTO[],8,FALSE),0) -> 0 | G26: 0
B27: =IFERROR(VLOOKUP(A27,PRODUCTO[],2,FALSE), " ") ->  | F27: =IFERROR(VLOOKUP(A27,PRODUCTO[],8,FALSE),0) -> 0 | G27: 0
B28: =IFERROR(VLOOKUP(A28,PRODUCTO[],2,FALSE), " ") ->  | F28: =IFERROR(VLOOKUP(A28,PRODUCTO[],8,FALSE),0) -> 0 | G28: 0
B29: =IFERROR(VLOOKUP(A29,PRODUCTO[],2,FALSE), " ") ->  | F29: =IFERROR(VLOOKUP(A29,PRODUCTO[],8,FALSE),0) -> 0 | G29: 0
B30: =IFERROR(VLOOKUP(A30,PRODUCTO[],2,FALSE), " ") ->  | F30: =IFERROR(VLOOKUP(A30,PRODUCTO[],8,FALSE),0) -> 0 | G30: 0
B31: =IFERROR(VLOOKUP(A31,PRODUCTO[],2,FALSE), " ") ->  | F31: =IFERROR(VLOOKUP(A31,PRODUCTO[],8,FALSE),0) -> 0 | G31: 0
E32: =SUM(E14:E31) -> 0
A33: RECIBE CONFORME: | F33: TOTAL | G33: =G14+G15+G16+G17+G18+G19+G20+G21+G22+G23+G24+G25+G26+G27+G28+G29+G30+G31 -> 0

Sheet OPCIONES DE LISTA
A1: FORMA DE PAGO
A2: EFECTIVO
A3: CREDITO
A4: SIN ENTREGAR
